bitfinex/quotes_SOLUSD_20250829
["timestamp","ask_amount","ask_price","bid_price","bid_amount"]
[1756451998207,29.16195766,210.16,210.09,29.82195766]
[1756451998385,29.16195766,210.14,210.09,0.66]
[1756451998586,29.16195766,210.14,210.1,48.18]
[1756451998898,0.71,210.17,210.08,48.18]
[1756451999083,29.16195766,210.13,210.08,48.18]
[1756451999277,29.16195766,210.13,210.08,48.84]
[1756451999473,29.16195766,210.13,210.09,0.66]
[1756451999810,29.16195766,210.12,210.06,0.66]
[1756451999978,29.16195766,210.1,210.07,48.18]
[1756452000179,29.16195766,210.1,210.08,48.16]
[1756452000378,31.46869381,210.15,210.08,48.82]
[1756452000708,30.75869381,210.15,210.08,48.82]
[1756452001000,0.06,210.16,210.09,0.66]
[1756452001190,0.06,210.16,210.1,55.16195766]
[1756452001376,0.06,210.16,210.11,0.66]
[1756452001578,0.06,210.16,210.12,29.16195766]
[1756452001777,29.16195766,210.13,210.1,48.16]
[1756452002003,0.71,210.13,210.1,48.16]
[1756452002202,0.06,210.16,210.11,0.66]
[1756452002378,0.06,210.16,210.13,26.0]
[1756452002579,0.06,210.16,210.14,0.66]
[1756452002915,29.16195766,210.23,210.18,26.0]
[1756452003110,29.16195766,210.24,210.18,74.82]
[1756452003780,18.35093187,210.29,210.18,74.82]
[1756452003987,29.16195766,210.24,210.18,74.82]
[1756452004285,29.16195766,210.24,210.18,74.8]
[1756452004693,43.52755167,210.19,210.09,0.66]
[1756452004893,29.16195766,210.13,210.08,48.14]
[1756452005093,29.16195766,210.13,210.08,48.8]
[1756452005282,29.16195766,210.11,210.04,0.66]
[1756452005482,0.71,210.16,210.04,0.66]
[1756452005483,29.16195766,210.09,210.05,74.14]
[1756452005716,29.16195766,210.09,210.05,74.8]
[1756452005907,4.75873227,210.14,210.05,74.8]
[1756452006107,29.16195766,210.09,210.05,48.8]
[1756452006417,29.16195766,210.09,210.05,0.66]
[1756452006589,29.16195766,210.1,210.06,48.12]
[1756452006793,5.46873227,210.14,210.06,48.12]
[1756452007514,29.16195766,210.1,210.07,48.12]
[1756452008711,4.75948305,210.11,210.07,48.12]
[1756452008920,33.92144071,210.11,210.07,48.12]
[1756452009090,4.75948305,210.11,210.08,48.12]
[1756452009294,0.71,210.1,209.98,0.66]
[1756452009511,4.75948305,210.11,209.99,77.28195766]
[1756452009717,29.16195766,210.09,210.02,26.0]
[1756452009905,0.71,210.12,210.03,29.16195766]
[1756452010218,5.46924184,210.12,210.04,77.26195766]
[1756452010425,18.35453487,210.14,210.05,0.66]
[1756452010798,29.16195766,210.11,210.05,0.66]
[1756452011007,29.16195766,210.11,210.06,48.1]
[1756452011201,29.16195766,210.11,210.07,48.1]
[1756452011595,18.35453487,210.14,210.07,48.1]
[1756452011824,29.16195766,210.12,210.07,48.1]
[1756452012330,29.16195766,210.12,210.08,48.1]
[1756452012902,18.35453487,210.14,209.96,1e-08]
[1756452012903,13.59559401,210.08,209.96,1e-08]
[1756452013248,39.59559401,210.13,210.06,29.16195766]
[1756452013416,3.41843249,210.12,210.07,48.1]
[1756452013722,4.75941173,210.11,210.07,48.1]
[1756452014220,4.75850582,210.15,210.07,48.1]
[1756452014518,3.41913773,210.14,210.07,48.1]
[1756452014721,3.41913773,210.14,210.07,77.26195766]
[1756452015025,3.41913773,210.14,210.08,29.16195766]
[1756452015900,8.17805273,210.14,210.08,29.16195766]
[1756452016227,33.92087266,210.14,210.07,77.26195766]
[1756452016413,4.758915,210.14,210.07,77.26195766]
[1756452017126,33.92087266,210.14,210.07,77.26195766]
[1756452017419,4.7586402,210.15,210.09,29.16195766]
[1756452017829,0.77,210.19,210.1,29.16195766]
[1756452018030,29.16195766,210.17,210.1,29.16195766]
[1756452018200,33.91978428,210.18,210.1,29.16195766]
[1756452018397,4.75782662,210.18,210.11,29.16195766]
[1756452018634,4.75782662,210.18,210.11,77.22195766]
[1756452019028,0.06,210.16,210.11,77.22195766]
[1756452019226,0.06,210.16,210.12,29.82195766]
[1756452019408,0.06,210.16,210.12,0.66]
[1756452019937,0.06,210.16,210.13,29.82195766]
[1756452020142,0.06,210.16,210.15,29.16195766]
[1756452020512,0.06,210.16,210.15,48.04]
[1756452020710,0.06,210.16,210.15,48.7]
[1756452021111,0.06,210.16,210.15,103.86195766]
[1756452021325,0.06,210.16,210.15,117.45755167]
[1756452021546,0.06,210.19,210.18,29.16195766]
[1756452021913,0.06,210.19,210.18,34.57978428]
[1756452022128,0.06,210.21,210.2,26.0]
[1756452022327,0.06,210.21,210.2,103.18195766]
[1756452022529,0.06,210.21,210.2,26.66]
[1756452022814,0.06,210.21,210.2,48.02]
[1756452023048,0.06,210.21,210.2,48.68]
[1756452023246,0.06,210.21,210.18,26.0]
[1756452023410,29.22195766,210.21,210.19,48.02]
[1756452023843,29.87195766,210.2,210.19,48.0]
[1756452024017,29.22195766,210.21,210.19,48.0]
[1756452024216,5.52716265,210.21,210.19,48.0]
[1756452024442,0.71,210.2,210.19,48.0]
[1756452024666,29.87195766,210.2,210.19,48.0]
[1756452024962,4.81716265,210.21,210.19,48.0]
[1756452025343,34.68912031,210.21,210.19,48.0]
[1756452025539,42.75755167,210.2,210.19,48.0]
[1756452025852,43.46755167,210.2,210.19,48.0]
[1756452026158,48.22492559,210.2,210.19,48.0]
[1756452026744,19.06296793,210.2,210.19,48.0]
[1756452027071,48.22492559,210.2,210.19,48.0]
[1756452027273,22.49590205,210.2,210.19,48.0]
[1756452027644,22.49590205,210.2,210.04,29.85195766]
[1756452027645,13.59559401,210.16,210.04,29.85195766]
[1756452027939,4.75986481,210.09,210.04,65.43195766]
[1756452028433,4.75986481,210.09,210.04,36.27]
[1756452028761,46.9026991,210.08,210.04,0.03]
[1756452029567,72.9026991,210.08,210.04,0.03]
[1756452030036,63.56301897,210.08,210.04,0.03]
[1756452030346,39.59559401,210.05,210.04,0.03]
[1756452030550,72.1926991,210.05,210.04,0.03]
[1756452030867,72.8726991,210.05,210.04,0.03]
[1756452031763,48.47151268,210.05,210.04,0.03]
[1756452032058,77.63347034,210.05,210.04,0.03]
[1756452032449,77.63347034,210.05,210.04,1e-08]
[1756452032768,26.0,209.97,209.96,1e-08]
[1756452033074,43.03074144,209.97,209.96,1e-08]
[1756452033364,72.8726991,209.97,209.96,1e-08]
[1756452033541,39.59559401,209.94,209.93,1e-08]
[1756452033744,76.94857238,209.94,209.93,1e-08]
[1756452034055,13.59559401,209.89,209.79,0.2]
[1756452034253,42.75755167,209.83,209.79,0.2]
[1756452034448,42.75755167,209.83,209.64,20.0]
[1756452034449,39.59559401,209.8,209.69,0.71]
[1756452034654,29.16195766,209.76,209.72,0.71]
[1756452034842,29.16195766,209.77,209.72,0.71]
[1756452035047,29.16195766,209.77,209.72,26.71]
[1756452035246,29.16195766,209.76,209.72,26.71]
[1756452035462,13.59559401,209.81,209.72,26.71]
[1756452035664,29.16195766,209.76,209.72,26.71]
[1756452035956,13.59559401,209.81,209.67,6.06271366]
[1756452035957,29.16195766,209.79,209.74,0.71]
[1756452036136,29.16195766,209.81,209.75,0.91]
[1756452036354,13.59559401,209.82,209.75,30.07195766]
[1756452036862,42.75755167,209.82,209.75,30.07195766]
[1756452037063,29.16195766,209.81,209.75,26.91]
[1756452037666,13.59559401,209.77,209.75,0.2]
[1756452037862,4.76662711,209.8,209.75,0.91]
[1756452038044,13.59559401,209.8,209.76,0.71]
[1756452038244,33.92809857,209.82,209.77,0.71]
[1756452038549,26.0,209.87,209.78,0.71]
[1756452038750,13.59559401,209.86,209.78,29.87195766]
[1756452038954,42.75755167,209.86,209.79,0.71]
[1756452039158,42.75755167,209.86,209.79,29.87195766]
[1756452039367,42.75755167,209.86,209.79,0.71]
[1756452039874,47.52270918,209.86,209.79,0.71]
[1756452040080,42.75755167,209.86,209.79,26.71]
[1756452040261,18.35999441,209.89,209.8,29.16195766]
[1756452040462,29.16195766,209.9,209.83,29.16195766]
[1756452040663,33.92604202,209.91,209.84,29.87195766]
[1756452040862,33.92604202,209.91,209.84,0.71]
[1756452040863,29.16195766,209.89,209.84,0.71]
[1756452041881,4.76408436,209.91,209.85,0.71]
[1756452042093,29.16195766,209.9,209.85,0.71]
[1756452042979,29.16195766,209.93,209.86,29.87195766]
[1756452043165,13.59559401,209.95,209.86,29.87195766]
[1756452043366,29.16195766,209.93,209.86,29.87195766]
[1756452043552,29.16195766,209.92,209.86,0.71]
[1756452043878,18.35877278,209.95,209.86,0.71]
[1756452044066,18.35877278,209.95,209.88,29.16195766]
[1756452044268,18.35877278,209.95,209.89,29.87195766]
[1756452045479,4.76317877,209.95,209.89,0.71]
[1756452046755,13.59559401,209.94,209.89,0.71]
[1756452047281,18.35817914,209.97,209.88,29.16195766]
[1756452047585,13.59559401,209.94,209.89,0.71]
[1756452047765,13.59559401,209.94,209.87,29.16195766]
[1756452047969,13.59559401,209.94,209.87,29.87195766]
[1756452048756,4.76349259,209.93,209.87,29.87195766]
[1756452048983,4.76349259,209.93,209.87,0.71]
[1756452049181,4.76349259,209.93,209.87,29.87195766]
[1756452049559,4.76349259,209.93,209.87,29.16195766]
[1756452049874,13.59559401,209.87,209.79,0.71]
[1756452050077,13.59559401,209.85,209.79,0.71]
[1756452050799,0.68,209.89,209.79,0.71]
[1756452050800,4.7646274,209.88,209.79,0.71]
[1756452050981,13.59559401,209.85,209.79,0.71]
[1756452051676,13.59559401,209.79,209.75,0.2]
[1756452052475,14.27559401,209.79,209.75,0.2]
[1756452052779,29.16195766,209.78,209.75,0.2]
[1756452052958,4.76712589,209.77,209.75,0.2]
[1756452054057,68.75755167,209.76,209.75,0.2]
[1756452054263,69.43755167,209.76,209.75,0.2]
[1756452054582,40.27559401,209.76,209.75,0.2]
[1756452054775,69.43755167,209.76,209.75,0.2]
[1756452055094,13.59559401,209.79,209.75,0.2]
[1756452055274,42.75755167,209.79,209.75,0.2]
[1756452055591,43.43755167,209.79,209.75,0.2]
[1756452056185,13.59559401,209.77,209.75,0.2]
[1756452057056,4.76689865,209.78,209.75,0.2]
[1756452058785,13.59559401,209.75,209.7,0.03]
[1756452059087,26.0,209.76,209.7,0.03]
[1756452059296,29.16195766,209.74,209.7,0.03]
[1756452059467,26.0,209.75,209.7,0.03]
[1756452059793,13.59559401,209.75,209.7,0.03]
[1756452060161,4.76689865,209.78,209.7,0.03]
[1756452060362,4.76689865,209.78,209.73,26.7]
[1756452060660,29.16195766,209.8,209.74,0.7]
[1756452060860,29.16195766,209.92,209.82,26.0]
[1756452061077,33.92566269,209.93,209.86,55.16195766]
[1756452061268,33.92566269,209.93,209.85,0.7]
[1756452061269,29.16195766,209.88,209.85,0.7]
[1756452061472,16.67243651,209.93,209.81,0.7]
[1756452061473,29.16195766,209.86,209.81,0.7]
[1756452061670,29.16195766,209.85,209.81,26.7]
[1756452062068,29.16195766,209.83,209.78,47.78]
[1756452062282,29.16195766,209.82,209.78,47.78]
[1756452062486,29.16195766,209.82,209.78,48.48]
[1756452062870,26.0,209.9,209.82,26.0]
[1756452062871,29.16195766,209.9,209.82,26.0]
[1756452063080,29.16195766,209.9,209.83,76.94195766]
[1756452063386,29.16195766,209.9,209.86,26.0]
[1756452063689,29.16195766,209.89,209.84,0.7]
[1756452064068,29.16195766,209.89,209.85,0.7]
[1756452064687,13.59559401,209.92,209.84,47.76]
[1756452064863,29.16195766,209.89,209.84,47.76]
[1756452065064,29.16195766,209.89,209.84,48.46]
[1756452065488,13.59559401,209.87,209.82,26.0]
[1756452065882,13.59559401,209.82,209.74,0.7]
[1756452066187,29.16195766,209.83,209.74,0.7]
[1756452066188,0.66,209.84,209.75,26.0]
[1756452066394,29.16195766,209.8,209.74,0.7]
[1756452066693,0.66,209.84,209.74,0.7]
[1756452066868,30.27655864,209.82,209.72,0.03]
[1756452067062,30.27655864,209.82,209.73,41.12]
[1756452067284,29.16195766,209.79,209.73,41.12]
[1756452067793,29.16195766,209.78,209.73,41.12]
[1756452067981,42.75755167,209.81,209.74,0.7]
[1756452068176,42.75755167,209.81,209.74,29.86195766]
[1756452068480,16.68096463,209.82,209.72,0.03]
[1756452068481,29.16195766,209.77,209.72,0.03]
[1756452068993,4.76735316,209.76,209.72,0.73]
[1756452069581,4.76735316,209.76,209.73,0.7]
[1756452070099,4.76735316,209.76,209.72,0.03]
[1756452070100,4.76667143,209.79,209.74,0.7]
[1756452070298,3.40511679,209.78,209.74,0.7]
[1756452070477,4.76667143,209.79,209.74,0.7]
[1756452070671,3.4051741,209.78,209.74,0.7]
[1756452070890,8.17208156,209.78,209.72,0.03]
[1756452071173,3.41017992,209.77,209.75,0.7]
[1756452071372,4.76665757,209.8,209.75,26.0]
[1756452071590,29.16195766,209.81,209.76,0.7]
[1756452071794,3.41123044,209.8,209.76,48.42]
[1756452072181,3.41123044,209.8,209.77,0.7]
[1756452072387,3.41123044,209.79,209.77,0.7]
[1756452072585,3.41123044,209.78,209.77,0.7]
[1756452072783,4.76621705,209.81,209.77,0.7]
[1756452072989,3.41123044,209.8,209.77,0.7]
[1756452073500,3.41123044,209.8,209.78,47.7]
[1756452073674,4.76621705,209.81,209.78,47.7]
[1756452074890,4.76621705,209.81,209.75,0.7]
[1756452075089,4.76621705,209.81,209.79,47.68]
[1756452075887,4.76621705,209.81,209.76,0.7]
[1756452076205,4.76621705,209.81,209.77,48.38]
[1756452076706,4.76621705,209.81,209.78,47.66]
[1756452077390,4.76621705,209.81,209.78,48.36]
[1756452078594,4.76598989,209.82,209.78,48.36]
[1756452080304,4.76598989,209.82,209.79,0.7]
[1756452080494,4.76598989,209.82,209.8,0.7]
[1756452080688,0.06,209.83,209.8,0.7]
[1756452081598,0.06,209.83,209.81,0.7]
[1756452081903,0.06,209.83,209.82,47.62]
[1756452083404,0.06,209.83,209.82,67.44063619]
[1756452083710,0.06,209.88,209.82,93.44063619]
[1756452083909,0.06,209.88,209.84,19.12063619]
[1756452084111,0.06,209.88,209.85,19.12063619]
[1756452084302,4.82463791,209.88,209.84,19.82063619]
[1756452084620,4.82463791,209.88,209.85,0.7]
[1756452084820,0.06,209.88,209.86,0.7]
[1756452085118,0.06,209.88,209.87,48.28]
[1756452085325,0.06,209.88,209.87,67.40063619]
[1756452086022,0.06,209.88,209.87,48.26]
[1756452088100,0.06,209.88,209.87,48.24]
[1756452088315,0.06,209.88,209.87,47.54]
[1756452088707,0.06,209.88,209.87,48.24]
[1756452093527,0.06,209.88,209.87,67.36063619]
[1756452093737,0.06,209.88,209.87,72.12549062]
[1756452093906,0.06,209.94,209.9,26.0]
[1756452094108,0.06,209.94,209.93,26.0]
[1756452094333,0.06,209.94,209.93,92.58063619]
[1756452094539,0.06,209.94,209.93,93.26063619]
[1756452096335,0.06,209.94,209.93,98.02412878]
[1756452096505,0.06,209.94,209.93,93.26063619]
[1756452097133,0.06,209.94,209.93,93.22063619]
[1756452097320,0.06,209.94,209.93,67.22063619]
[1756452097929,0.06,209.94,209.93,19.80063619]
[1756452098234,0.06,209.94,209.93,73.4]
[1756452098445,0.73,209.94,209.88,19.12063619]
[1756452098644,0.73,209.94,209.9,26.0]
[1756452098940,0.67,209.93,209.91,47.4]
[1756452099519,4.76371951,209.92,209.91,47.4]
[1756452100647,4.76371951,209.92,209.91,47.36]
[1756452102250,0.06,209.94,209.93,26.0]
[1756452102439,11.96071059,210.08,209.96,26.0]
[1756452102644,4.76100607,210.04,209.96,92.46063619]
[1756452102952,4.76100607,210.04,209.96,93.14063619]
[1756452103128,0.67,210.04,209.96,45.80063619]
[1756452103327,0.67,210.04,209.96,93.14063619]
[1756452103733,0.67,210.04,209.96,67.12063619]
[1756452104134,4.76122458,210.03,209.96,67.12063619]
[1756452104325,4.76122458,210.03,209.82,1.908897]
[1756452104326,19.79063619,210.0,209.93,19.12063619]
[1756452104521,4.76122458,210.03,209.96,19.12063619]
[1756452104724,4.76122458,210.03,209.96,45.12063619]
[1756452104921,4.76122458,210.03,209.96,45.80063619]
[1756452105139,4.82090661,210.05,209.96,67.10063619]
[1756452105343,0.06,210.05,209.96,67.10063619]
[1756452106550,4.82077124,210.05,209.96,24.56344815]
[1756452106726,4.82077124,210.05,209.96,71.84344815]
[1756452106927,5.49077124,210.05,209.96,67.08063619]
[1756452107149,24.61140743,210.05,209.96,67.08063619]
[1756452108157,19.12063619,210.04,209.96,92.38063619]
[1756452108366,4.76145129,210.02,209.96,92.38063619]
[1756452108567,23.88208748,210.02,209.96,73.26]
[1756452108757,19.79063619,210.01,209.96,73.26]
[1756452108943,0.67,210.01,209.96,73.26]
[1756452109274,19.12063619,210.01,209.96,73.24]
[1756452109577,13.59559401,209.96,209.84,19.12063619]
[1756452109774,19.12063619,209.91,209.85,47.24]
[1756452109952,19.79063619,209.9,209.86,47.24]
[1756452110137,0.67,209.89,209.87,47.24]
[1756452110345,5.4344004,209.89,209.88,47.24]
[1756452110540,4.7644004,209.89,209.88,47.24]
[1756452111141,5.4344004,209.89,209.88,47.24]
[1756452111446,13.59559401,209.88,209.86,47.24]
[1756452111645,19.79063619,209.87,209.79,19.12063619]
[1756452111866,19.79063619,209.87,209.8,47.22]
[1756452112069,19.79063619,209.87,209.81,47.22]
[1756452112562,13.59559401,209.84,209.77,19.12063619]
[1756452112869,19.12063619,209.8,209.76,47.22]
[1756452113067,0.67,209.79,209.76,47.22]
[1756452113568,19.12063619,209.8,209.76,47.22]
[1756452113872,19.12063619,209.84,209.77,19.80063619]
[1756452114066,19.12063619,209.83,209.76,66.34063619]
[1756452114471,19.12063619,209.83,209.76,67.02063619]
[1756452114776,0.67,209.85,209.79,45.12063619]
[1756452114976,0.67,209.85,209.8,47.2]
[1756452115176,19.12063619,209.86,209.8,47.2]
[1756452115557,4.76508148,209.86,209.8,47.2]
[1756452115757,4.76508148,209.86,209.8,66.32063619]
[1756452115966,4.76508148,209.86,209.81,19.12063619]
[1756452116276,4.76508148,209.86,209.81,19.80063619]
[1756452116684,23.88526359,209.88,209.81,0.68]
[1756452116860,19.12063619,209.87,209.81,0.68]
[1756452117066,19.12063619,209.87,209.8,47.2]
[1756452117585,19.12063619,209.87,209.79,45.12063619]
[1756452117586,19.12063619,209.87,209.81,47.18]
[1756452117875,5.4346274,209.88,209.81,47.18]
[1756452118089,19.12063619,209.87,209.81,47.18]
[1756452118484,4.76508148,209.86,209.81,47.18]
[1756452118653,5.43508148,209.86,209.81,47.18]
[1756452118982,13.59559401,209.89,209.81,47.18]
[1756452119180,4.76484125,209.88,209.82,66.28063619]
[1756452119877,23.88547744,209.88,209.82,47.16]
[1756452120072,23.88547744,209.88,209.85,26.0]
[1756452120272,23.88547744,209.88,209.86,47.16]
[1756452120453,24.59547744,209.88,209.86,47.16]
[1756452120654,13.59559401,209.86,209.77,0.7]
[1756452120849,19.12063619,209.83,209.78,47.14]
[1756452121055,19.12063619,209.83,209.78,73.14]
[1756452121261,19.12063619,209.85,209.79,0.7]
[1756452121463,32.7162302,209.86,209.79,0.7]
[1756452121667,19.12063619,209.86,209.79,0.7]
[1756452122173,13.59559401,209.86,209.78,73.14]
[1756452122374,4.76530855,209.85,209.79,19.12063619]
[1756452122551,0.71,209.89,209.79,0.7]
[1756452122751,32.7162302,209.86,209.8,17.68]
[1756452122973,19.12063619,209.85,209.8,17.68]
[1756452123175,13.59559401,209.83,209.81,47.12]
[1756452123565,32.7162302,209.84,209.81,47.12]
[1756452123767,13.59559401,209.85,209.79,26.0]
[1756452123971,13.59559401,209.85,209.8,66.24063619]
[1756452124171,13.59559401,209.85,209.8,66.94063619]
[1756452124568,4.76553564,209.84,209.8,66.94063619]
[1756452124772,4.76553564,209.84,209.8,47.82]
[1756452124982,23.88617183,209.84,209.75,26.03]
[1756452125183,0.71,209.83,209.75,0.03]
[1756452125387,19.12063619,209.76,209.75,0.03]
[1756452125684,19.12063619,209.78,209.75,0.03]
[1756452126162,19.83063619,209.78,209.75,0.03]
[1756452126362,0.71,209.78,209.75,0.03]
[1756452126562,4.76712589,209.77,209.75,0.03]
[1756452129894,13.59559401,209.75,209.73,0.2]
[1756452130097,32.7162302,209.74,209.73,0.2]
[1756452130268,33.4262302,209.74,209.73,1e-08]
[1756452130668,13.59559401,209.65,209.54,0.03]
[1756452130871,32.7162302,209.55,209.54,0.03]
[1756452131278,33.4262302,209.55,209.54,0.03]
[1756452131475,14.30559401,209.55,209.54,0.03]
[1756452131668,33.4262302,209.55,209.54,0.03]
[1756452132176,32.7162302,209.55,209.54,0.03]
[1756452132579,33.4262302,209.55,209.54,0.03]
[1756452134366,33.4262302,209.55,209.18,23.54103797]
[1756452134367,42.96,209.53,209.28,0.7]
[1756452134568,26.0,209.36,209.29,0.03001289]
[1756452134786,13.59559401,209.35,209.22,2.49688695]
[1756452135113,13.59559401,209.35,209.14,4.78148608]
[1756452135114,19.12063619,209.24,209.15,0.7]
[1756452135405,19.12063619,209.24,209.13,0.1]
[1756452135406,19.12063619,209.17,209.13,0.1]
[1756452136306,0.71,209.24,209.14,47.76]
[1756452136484,19.12063619,209.2,209.15,47.06]
[1756452136682,19.12063619,209.2,209.15,0.7]
[1756452137201,0.71,209.3,209.16,0.7]
[1756452137387,13.59559401,209.29,209.19,26.0]
[1756452137588,0.71,209.33,209.2,0.7]
[1756452137799,29.45679413,209.28,209.21,47.06]
[1756452137999,29.45679413,209.28,209.22,0.7]
[1756452138198,13.59559401,209.32,209.22,0.7]
[1756452138199,0.71,209.31,209.22,47.06]
[1756452138406,13.59559401,209.3,209.22,47.06]
[1756452138575,29.45679413,209.25,209.22,47.06]
[1756452138774,29.45679413,209.23,209.14,0.7]
[1756452139088,26.0,209.3,209.14,0.7]
[1756452139279,13.59559401,209.27,209.14,0.7]
[1756452139606,29.45679413,209.25,209.15,29.45679413]
[1756452139775,20.0,209.36,209.18,26.0]
[1756452139776,0.71,209.33,209.18,26.0]
[1756452139974,29.45679413,209.3,209.23,29.45679413]
[1756452140189,29.45679413,209.34,209.24,0.7]
[1756452140495,29.45679413,209.32,209.25,47.08]
[1756452141071,29.45679413,209.34,209.28,26.0]
[1756452141297,29.45679413,209.34,209.29,47.78]
[1756452141494,29.45679413,209.36,209.3,0.7]
[1756452141991,14.30559401,209.4,209.21,16.72940606]
[1756452141992,29.45679413,209.34,209.25,30.15679413]
[1756452142188,13.59559401,209.37,209.29,47.08]
[1756452142384,29.45679413,209.35,209.28,0.7]
[1756452142587,29.45679413,209.35,209.29,47.08]
[1756452142784,14.363345,209.46,209.29,47.08]
[1756452142990,13.59559401,209.41,209.3,0.7]
[1756452143203,29.45679413,209.41,209.33,29.45679413]
[1756452143374,29.45679413,209.41,209.34,47.78]
[1756452143573,29.45679413,209.43,209.35,30.15679413]
[1756452143799,29.45679413,209.45,209.37,29.45679413]
[1756452144005,0.71,209.48,209.38,0.7]
[1756452144303,0.71,209.51,209.41,29.45679413]
[1756452144502,29.45679413,209.5,209.42,0.7]
[1756452144718,13.59559401,209.49,209.37,4.77621707]
[1756452144925,13.59559401,209.49,209.3,4.77783086]
[1756452144926,29.45679413,209.44,209.3,4.77783086]
[1756452145098,29.45679413,209.42,209.35,26.7]
[1756452145421,29.45679413,209.4,209.32,55.45679413]
[1756452145617,29.45679413,209.4,209.33,47.08]
[1756452146119,29.45679413,209.4,209.33,51.85700251]
[1756452146605,29.45679413,209.4,209.33,4.77700251]
[1756452146800,43.05238814,209.42,209.34,47.08]
[1756452147109,29.45679413,209.44,209.35,29.45679413]
[1756452147292,29.45679413,209.44,209.35,30.15679413]
[1756452147493,29.45679413,209.44,209.36,29.45679413]
[1756452147695,0.71,209.49,209.4,29.45679413]
[1756452147909,29.45679413,209.5,209.42,29.45679413]
[1756452148111,29.45679413,209.5,209.43,4.77486511]
[1756452148502,29.45679413,209.5,209.44,47.1]
[1756452148897,29.45679413,209.51,209.45,47.08]
[1756452149297,13.59559401,209.53,209.44,30.15679413]
[1756452149518,43.05238814,209.53,209.46,47.08]
[1756452149822,29.45679413,209.53,209.47,47.08]
[1756452150029,0.71,209.56,209.48,4.77372541]
[1756452150337,29.45679413,209.52,209.48,4.77372541]
[1756452150630,0.06,209.54,209.48,4.77372541]
[1756452151127,0.06,209.54,209.48,16.70803894]
[1756452151324,0.06,209.54,209.5,29.45679413]
[1756452151810,0.06,209.54,209.5,30.12679413]
[1756452152200,0.06,209.54,209.51,34.22983598]
[1756452152401,0.06,209.54,209.53,29.45679413]
[1756452152709,0.06,209.54,209.53,76.53679413]
[1756452152906,0.06,209.57,209.53,77.20679413]
[1756452153109,0.06,209.57,209.55,29.45679413]
[1756452153318,0.06,209.57,209.51,16.70564649]
[1756452153319,0.06,209.57,209.52,0.67]
[1756452153622,0.06,209.57,209.53,0.67]
[1756452153801,0.06,209.57,209.54,77.20679413]
[1756452153998,0.06,209.57,209.54,30.12679413]
[1756452154219,0.06,209.57,209.56,4.77190303]
[1756452155232,0.06,209.57,209.56,52.52190303]
[1756452155406,0.06,209.59,209.56,81.97869716]
[1756452156034,0.06,209.59,209.56,52.52190303]
[1756452156215,0.06,209.59,209.56,5.44190303]
[1756452156417,0.06,209.59,209.57,47.06]
[1756452156808,0.06,209.59,209.53,4.77258626]
[1756452156809,29.51679413,209.59,209.53,4.77258626]
[1756452157114,0.06,209.59,209.53,46.83084605]
[1756452157314,0.06,209.59,209.54,29.45679413]
[1756452157725,0.06,209.59,209.55,0.67]
[1756452157934,0.06,209.59,209.56,56.12679413]
[1756452158105,0.06,209.59,209.54,0.67]
[1756452158308,0.06,209.59,209.53,16.70405192]
[1756452158616,0.06,209.59,209.55,16.70245764]
[1756452159026,0.06,209.59,209.56,0.67]
[1756452159535,0.06,209.59,209.55,16.70245764]
[1756452159835,0.06,209.59,209.56,47.06]
[1756452160626,29.45679413,209.58,209.57,47.04]
[1756452160940,29.45679413,209.58,209.56,47.04]
[1756452162116,29.45679413,209.58,209.53,16.70405192]
[1756452162329,29.45679413,209.58,209.54,47.04]
[1756452162541,0.06,209.59,209.55,4.77213075]
[1756452162837,29.51679413,209.59,209.55,4.77213075]
[1756452163137,29.45679413,209.58,209.55,4.77213075]